fUSD/lending_fUSD_20240803
["ID","MTS","AMOUNT","RATE_DAILY","PERIOD"]
[334001440,1722672653836,-500.0,0.00016712,2]
[334001441,1722672653845,-561.29,0.00016712,2]
[334001442,1722672653854,-500.0,0.00016712,2]
[334001443,1722672653863,-500.0,0.00016712,2]
[334001444,1722672653872,-500.0,0.00016712,2]
[334001445,1722672653882,-857.89,0.00016712,2]
[334001446,1722672653891,-42354.3,0.00016712,2]
[334001447,1722672653900,-580.03,0.00016712,2]
[334001448,1722672653910,-5350.45,0.00016712,2]
[334001449,1722672653919,-500.0,0.00016712,2]
[334001450,1722672653928,-500.0,0.00016712,2]
[334001451,1722672653938,-728.4,0.00016712,2]
[334001452,1722672653947,-500.0,0.00016712,2]
[334001453,1722672653957,-500.0,0.00016712,2]
[334001454,1722672653966,-500.0,0.00016712,2]
[334001455,1722672653976,-500.0,0.00016712,2]
[334001456,1722672653985,-3471.03,0.00016712,2]
[334001457,1722672653995,-609.74,0.00016712,2]
[334001458,1722672654004,-1689.99,0.00016712,2]
[334001459,1722672654013,-500.0,0.00016712,2]
[334001460,1722672654022,-6425.66,0.00016712,2]
[334001461,1722672654031,-648.94,0.00016712,2]
[334001462,1722672654040,-500.0,0.00016712,2]
[334001463,1722672654050,-1670.28,0.00016712,2]
[334001464,1722672654059,-13172.1,0.00016712,2]
[334001465,1722672654068,-501.68228567,0.00016712,2]
[334001466,1722672654078,-6701.04,0.00016712,2]
[334001467,1722672654087,-2424.35,0.00016712,2]
[334001468,1722672654096,-1079.15,0.00016712,2]
[334001469,1722672654106,-697.85,0.00016712,2]
[334001470,1722672654115,-1261.65,0.00016712,2]
[334001471,1722672654125,-500.0,0.00016712,2]
[334001472,1722672654134,-1264.29,0.00016712,2]
[334001473,1722672654143,-500.0,0.00016712,2]
[334001474,1722672654153,-3981.7,0.00016712,2]
[334001475,1722672654162,-500.0,0.00016712,2]
[334001476,1722672654171,-808.41,0.00016712,2]
[334001477,1722672654181,-500.0,0.00016712,2]
[334001478,1722672654190,-9537.11,0.00016712,2]
[334001479,1722672654199,-500.0,0.00016712,2]
[334001480,1722672654208,-873.33,0.00016712,2]
[334001481,1722672654217,-627.46,0.00016712,2]
[334001482,1722672654227,-4527.79,0.00016712,2]
[334001483,1722672654236,-1120.2,0.00016712,2]
[334001484,1722672654245,-500.0,0.00016712,2]
[334001485,1722672654254,-1413.65,0.00016712,2]
[334001486,1722672654263,-500.0,0.00016712,2]
[334001487,1722672654272,-799.1,0.00016712,2]
[334001488,1722672654281,-2582.22,0.00016712,2]
[334001489,1722672654290,-500.0,0.00016712,2]
[334001490,1722672654301,-500.0,0.00016712,2]
[334001491,1722672654310,-500.0,0.00016712,2]
[334001492,1722672654320,-558.9,0.00016712,2]
[334001493,1722672654329,-500.0,0.00016712,2]
[334001494,1722672654338,-4338.65,0.00016712,2]
[334001495,1722672654348,-589.65,0.00016712,2]
[334001496,1722672654357,-500.0,0.00016712,2]
[334001497,1722672654366,-6299.84,0.00016712,2]
[334001498,1722672654375,-500.0,0.00016712,2]
[334001499,1722672654385,-3567.38,0.00016712,2]
[334001500,1722672654394,-504.8,0.00016712,2]
[334001501,1722672654403,-500.0,0.00016712,2]
[334001502,1722672654412,-1132.78,0.00016712,2]
[334001503,1722672654422,-527.09,0.00016712,2]
[334001504,1722672654432,-500.0,0.00016712,2]
[334001505,1722672654442,-500.0,0.00016712,2]
[334001506,1722672654451,-557.75,0.00016712,2]
[334001507,1722672654461,-500.0,0.00016712,2]
[334001508,1722672654470,-500.0,0.00016712,2]
[334001509,1722672654480,-775.61,0.00016712,2]
[334001510,1722672654489,-5075.14,0.00016712,2]
[334001511,1722672654499,-500.0,0.00016712,2]
[334001512,1722672654513,-1597.24,0.00016712,2]
[334001513,1722672654522,-524.51,0.00016712,2]
[334001514,1722672654532,-2236.78,0.00016712,2]
[334001515,1722672654542,-500.0,0.00016712,2]
[334001516,1722672654551,-739.97,0.00016712,2]
[334001517,1722672654560,-591.43,0.00016712,2]
[334001518,1722672654570,-7580.49,0.00016712,2]
[334001519,1722672654579,-1988.37,0.00016712,2]
[334001520,1722672654589,-500.0,0.00016712,2]
[334001521,1722672654598,-1153.18,0.00016712,2]
[334001522,1722672654607,-500.0,0.00016712,2]
[334001523,1722672654616,-1779.35,0.00016712,2]
[334001524,1722672654626,-806.0,0.00016712,2]
[334001525,1722672654636,-520.82,0.00016712,2]
[334001526,1722672654645,-1222.12,0.00016712,2]
[334001527,1722672654655,-500.0,0.00016712,2]
[334001528,1722672654664,-543.96,0.00016712,2]
[334001529,1722672654675,-500.0,0.00016712,2]
[334001530,1722672654685,-500.0,0.00016712,2]
[334001531,1722672654694,-2755.57,0.00016712,2]
[334001532,1722672654704,-1766.59,0.00016712,2]
[334001533,1722672654713,-500.0,0.00016712,2]
[334001534,1722672654724,-500.0,0.00016712,2]
[334001535,1722672654734,-6784.85,0.00016712,2]
[334001536,1722672654744,-500.0,0.00016712,2]
[334001537,1722672654753,-500.0,0.00016712,2]
[334001538,1722672654763,-1170.99,0.00016712,2]
[334001539,1722672654773,-500.0,0.00016712,2]
[334001540,1722672654783,-500.0,0.00016712,2]
[334001541,1722672654792,-500.0,0.00016712,2]
[334001542,1722672654802,-1509.0,0.00016712,2]
[334001543,1722672654812,-2272.41,0.00016712,2]
[334001544,1722672654822,-1134.66,0.00016712,2]
[334001545,1722672654832,-788.7,0.00016712,2]
[334001546,1722672654842,-500.0,0.00016712,2]
[334001547,1722672654852,-500.0,0.00016712,2]
[334001548,1722672654862,-500.0,0.00016712,2]
[334001549,1722672654872,-500.0,0.00016712,2]
[334001550,1722672654881,-500.0,0.00016712,2]
[334001551,1722672654892,-500.0,0.00016712,2]
[334001552,1722672654901,-556.92,0.00016712,2]
[334001553,1722672654911,-851.8,0.00016712,2]
[334001554,1722672654921,-500.0,0.00016712,2]
[334001555,1722672654930,-829.82,0.00016712,2]
[334001556,1722672654940,-500.0,0.00016712,2]
[334001557,1722672654949,-978.08,0.00016712,2]
[334001558,1722672654962,-3555.81,0.00016712,2]
[334001559,1722672654971,-1000.11,0.00016712,2]
[334001560,1722672654981,-1173.97,0.00016712,2]
[334001561,1722672654991,-500.0,0.00016712,2]
[334001562,1722672655001,-500.0,0.00016712,2]
[334001563,1722672655010,-500.0,0.00016712,2]
[334001564,1722672655019,-500.0,0.00016712,2]
[334001565,1722672655029,-6514.15,0.00016712,2]
[334001566,1722672655040,-500.0,0.00016712,2]
[334001567,1722672655050,-828.77,0.00016712,2]
[334001568,1722672655060,-1272.15,0.00016712,2]
[334001569,1722672655070,-3333.78,0.00016712,2]
[334001570,1722672655079,-2015.77,0.00016712,2]
[334001571,1722672655089,-1643.08,0.00016712,2]
[334001572,1722672655098,-1598.98,0.00016712,2]
[334001573,1722672655107,-3382.08,0.00016712,2]
[334001574,1722672655118,-1056.18,0.00016712,2]
[334001575,1722672655128,-1410.26,0.00016712,2]
[334001576,1722672655139,-500.0,0.00016712,2]
[334001577,1722672655148,-657.49,0.00016712,2]
[334001578,1722672655158,-500.0,0.00016712,2]
[334001579,1722672655167,-500.0,0.00016712,2]
[334001580,1722672655177,-1314.36,0.00016712,2]
[334001581,1722672655187,-5105.47,0.00016712,2]
[334001582,1722672655197,-1117.0,0.00016712,2]
[334001583,1722672655207,-500.0,0.00016712,2]
[334001584,1722672655216,-863.0,0.00016712,2]
[334001585,1722672655226,-988.31,0.00016712,2]
[334001586,1722672655235,-500.0,0.00016712,2]
[334001587,1722672655244,-588.88,0.00016712,2]
[334001588,1722672655253,-916.53,0.00016712,2]
[334001589,1722672655262,-500.0,0.00016712,2]
[334001590,1722672655271,-3858.07,0.00016712,2]
[334001591,1722672655281,-886.61,0.00016712,2]
[334001592,1722672655290,-2523.24,0.00016712,2]
[334001593,1722672655301,-1144.92,0.00016712,2]
[334001594,1722672655310,-502.00951739,0.00016712,2]
[334001595,1722672655320,-500.0,0.00016712,2]
[334001596,1722672655329,-1055.01,0.00016712,2]
[334001597,1722672655339,-500.0,0.00016712,2]
[334001598,1722672655348,-596.99,0.00016712,2]
[334001599,1722672655357,-500.0,0.00016712,2]
[334001600,1722672655366,-500.0,0.00016712,2]
[334001601,1722672655376,-867.52,0.00016712,2]
[334001602,1722672655386,-758.07,0.00016712,2]
[334001603,1722672655395,-330.57742761,0.00016712,2]
[334001604,1722672655405,-500.0,0.00016712,2]
[334001605,1722672655415,-500.0,0.00016712,2]
[334001606,1722672655424,-1413.54,0.00016712,2]
[334001607,1722672655434,-500.0,0.00016712,2]
[334001608,1722672655444,-626.69,0.00016712,2]
[334001609,1722672655453,-1086.46,0.00016712,2]
[334001610,1722672655463,-500.0,0.00016712,2]
[334001611,1722672655472,-500.0,0.00016712,2]
[334001612,1722672655482,-1048.09,0.00016712,2]
[334001613,1722672655491,-2041.55,0.00016712,2]
[334001614,1722672655503,-945.91,0.00016712,2]
[334001615,1722672655514,-500.0,0.00016712,2]
[334001616,1722672655523,-503.04,0.00016712,2]
[334001617,1722672655532,-2243.32,0.00016712,2]
[334001618,1722672655543,-1876.41,0.00016712,2]
[334001619,1722672655552,-876.92,0.00016712,2]
[334001620,1722672655562,-500.0,0.00016712,2]
[334001621,1722672655572,-500.0,0.00016712,2]
[334001622,1722672655584,-1974.73,0.00016712,2]
[334001623,1722672655594,-596.72,0.00016712,2]
[334001624,1722672655604,-500.0,0.00016712,2]
[334001625,1722672655614,-849.08,0.00016712,2]
[334001626,1722672655624,-1000.0,0.00016712,60]
[334001627,1722672655633,-1836.41,0.00016712,2]
[334001628,1722672655643,-3536.23,0.00016712,2]
[334001629,1722672655652,-1295.33,0.00016712,2]
[334001630,1722672655662,-500.0,0.00016712,2]
[334001631,1722672655671,-2083.37,0.00016712,2]
[334001632,1722672655682,-500.0,0.00016712,2]
[334001633,1722672655691,-500.0,0.00016712,2]
[334001634,1722672655700,-500.0,0.00016712,2]
[334001635,1722672655710,-500.0,0.00016712,2]
[334001636,1722672655719,-500.0,0.00016712,2]
[334001637,1722672655729,-1001.94,0.00016712,2]
[334001638,1722672655739,-157.13597105,0.00016712,2]
[334001639,1722672655750,-510.96615047,0.00016712,2]
[334001640,1722672655759,-3080.78,0.00016712,2]
[334001641,1722672655770,-547.37,0.00016712,2]
[334001642,1722672655779,-1224.2,0.00016712,2]
[334001643,1722672655789,-500.0,0.00016712,2]
[334001644,1722672655799,-500.0,0.00016712,2]
[334001645,1722672655808,-3054.54,0.00016712,2]
[334001646,1722672655818,-1519.85,0.00016712,2]
[334001647,1722672655828,-1194.14,0.00016712,2]
[334001648,1722672655837,-793.38,0.00016712,2]
[334001649,1722672655847,-871.03,0.00016712,2]
[334001650,1722672655857,-500.0,0.00016712,2]
[334001651,1722672655867,-525.65,0.00016712,2]
[334001652,1722672655876,-1267.34,0.00016712,2]
[334001653,1722672655886,-500.0,0.00016712,2]
[334001654,1722672655895,-3366.59,0.00016712,2]
[334001655,1722672655905,-992.94,0.00016712,2]
[334001656,1722672655915,-555.73,0.00016712,2]
[334001657,1722672655925,-500.0,0.00016712,2]
[334001658,1722672655934,-550.93,0.00016712,2]
[334001659,1722672655945,-500.0,0.00016712,2]
[334001660,1722672655955,-642.28,0.00016712,2]
[334001661,1722672655964,-1662.23,0.00016712,2]
[334001662,1722672655974,-1946.82,0.00016712,2]
[334001663,1722672655984,-1212.94,0.00016712,2]
[334001664,1722672655993,-1900.41,0.00016712,2]
[334001665,1722672656002,-500.0,0.00016712,2]
[334001666,1722672656012,-2354.23,0.00016712,2]
[334001667,1722672656021,-937.73,0.00016712,2]
[334001668,1722672656031,-517.64411915,0.00016712,2]
[334001669,1722672656040,-692.84,0.00016712,2]
[334001670,1722672656051,-1192.07,0.00016712,2]
[334001671,1722672656060,-1258.11,0.00016712,2]
[334001672,1722672656070,-500.0,0.00016712,2]
[334001673,1722672656079,-1060.96,0.00016712,2]
[334001674,1722672656089,-4981.79,0.00016712,2]
[334001675,1722672656098,-6100.7,0.00016712,2]
[334001676,1722672656108,-500.0,0.00016712,2]
[334001677,1722672656117,-2170.91,0.00016712,2]
[334001678,1722672656127,-937.04,0.00016712,2]
[334001679,1722672656137,-500.0,0.00016712,2]
[334001680,1722672656146,-2840.72,0.00016712,2]
[334001681,1722672656156,-4003.25,0.00016712,2]
[334001682,1722672656165,-804.77,0.00016712,2]
[334001683,1722672656175,-500.0,0.00016712,2]
[334001684,1722672656184,-500.0,0.00016712,2]
[334001685,1722672656198,-1151.68,0.00016712,2]
[334001686,1722672656209,-2144.3,0.00016712,2]
[334001687,1722672656221,-500.0,0.00016712,2]
[334001688,1722672656231,-721.28,0.00016712,2]
[334001689,1722672656241,-500.0,0.00016712,2]
[334001690,1722672656250,-549.7,0.00016712,2]
[334001691,1722672656259,-1032.34,0.00016712,2]
[334001692,1722672656269,-2037.25,0.00016712,2]
[334001693,1722672656279,-500.0,0.00016712,2]
[334001694,1722672656289,-3499.27,0.00016712,2]
[334001695,1722672656299,-1536.28,0.00016712,2]
[334001696,1722672656309,-928.42,0.00016712,2]
[334001697,1722672656319,-500.0,0.00016712,2]
[334001698,1722672656328,-1037.63,0.00016712,2]
[334001699,1722672656338,-1737.33,0.00016712,2]
[334001700,1722672656347,-1906.6,0.00016712,2]
[334001701,1722672656357,-1095.94,0.00016712,2]
[334001702,1722672656367,-500.0,0.00016712,2]
[334001703,1722672656376,-663.02,0.00016712,2]
[334001704,1722672656386,-500.0,0.00016712,2]
[334001705,1722672656395,-602.45,0.00016712,2]
[334001706,1722672656406,-1104.11,0.00016712,2]
[334001707,1722672656416,-500.0,0.00016712,2]
[334001708,1722672656425,-3795.21,0.00016712,2]
[334001709,1722672656435,-10541.0,0.00016712,2]
[334001710,1722672656569,-781.58854722,0.00016813,2]
[334001711,1722672656590,-9378.82424414,0.00016813,2]
[334001712,1722672656600,-1200.0,0.000169,6]
[334001713,1722672656611,-416.0,0.00016914,2]
[334001714,1722672656621,-1404.85068933,0.00016952,2]
[334001715,1722672656631,-153.415,0.00016959,2]
[334001716,1722672656641,-500.0,0.00016986,2]
[334001717,1722672656651,-500.0,0.00016986,2]
[334001718,1722672656660,-500.0,0.00016986,2]
[334001719,1722672656670,-500.0,0.00016986,2]
[334001720,1722672656679,-500.0,0.00016986,2]
[334001721,1722672656693,-500.0,0.00016986,2]
[334001722,1722672656705,-500.0,0.00016986,2]
[334001723,1722672656715,-500.0,0.00016986,2]
[334001724,1722672656725,-504.84782958,0.00016986,2]
[334001725,1722672656735,-500.0,0.00016986,2]
[334001726,1722672656745,-500.0,0.00016986,2]
[334001727,1722672656756,-500.0,0.00016986,2]
[334001728,1722672656766,-500.0,0.00016986,2]
[334001729,1722672656776,-500.0,0.00016986,2]
[334001730,1722672656786,-500.0,0.00016986,2]
[334001731,1722672656797,-500.0,0.00016986,2]
[334001732,1722672656807,-500.0,0.00016986,2]
[334001733,1722672656817,-537.74,0.00016986,2]
[334001734,1722672656827,-500.0,0.00016986,2]
[334001735,1722672656837,-500.0,0.00016986,2]
[334001736,1722672656847,-516.34073514,0.00016986,2]
[334001737,1722672656857,-500.0,0.00016986,2]
[334001738,1722672656867,-907.58,0.00016986,2]
[334001739,1722672656877,-500.0,0.00016986,2]
[334001740,1722672656886,-500.0,0.00016986,2]
[334001741,1722672656896,-500.0,0.00016986,2]
[334001742,1722672656907,-500.0,0.00016986,2]
[334001743,1722672656917,-500.0,0.00016986,2]
[334001744,1722672656927,-500.0,0.00016986,2]
[334001745,1722672656939,-560.39,0.00016986,2]
[334001746,1722672656949,-610.67437761,0.00016986,2]
[334001747,1722672656959,-500.0,0.00016986,2]
[334001748,1722672656969,-500.0,0.00016986,2]
[334001749,1722672656980,-550.32,0.00016986,2]
[334001750,1722672656990,-500.0,0.00016986,2]
[334001751,1722672657000,-548.45,0.00016986,2]
[334001752,1722672657010,-500.0,0.00016986,2]
[334001753,1722672657020,-500.0,0.00016986,2]
[334001754,1722672657030,-524.39577994,0.00016986,2]
[334001755,1722672657040,-500.0,0.00016986,2]
[334001756,1722672657050,-500.0,0.00016986,2]
[334001757,1722672657060,-599.16,0.00016986,2]
[334001758,1722672657070,-500.0,0.00016986,2]
[334001759,1722672657080,-500.0,0.00016986,2]
[334001760,1722672657089,-500.0,0.00016986,2]
[334001761,1722672657099,-500.0,0.00016986,2]
[334001762,1722672657112,-500.0,0.00016986,2]
[334001763,1722672657121,-500.0,0.00016986,2]
[334001764,1722672657132,-552.15490103,0.00016986,2]
[334001765,1722672657142,-500.0,0.00016986,2]
[334001766,1722672657153,-528.88,0.00016986,2]
[334001767,1722672657163,-561.29,0.00016986,2]
[334001768,1722672657173,-500.0,0.00016986,2]
[334001769,1722672657183,-500.0,0.00016986,2]
[334001770,1722672657193,-500.0,0.00016986,2]
[334001771,1722672657203,-500.0,0.00016986,2]
[334001772,1722672657213,-500.0,0.00016986,2]
[334001773,1722672657223,-500.0,0.00016986,2]
[334001774,1722672657232,-500.0,0.00016986,2]
[334001775,1722672657242,-500.0,0.00016986,2]
[334001776,1722672657251,-500.0,0.00016986,2]
[334001777,1722672657261,-500.0,0.00016986,2]
[334001778,1722672657271,-706.98,0.00016986,2]
[334001779,1722672657281,-500.0,0.00016986,2]
[334001780,1722672657291,-500.0,0.00016986,2]
[334001781,1722672657300,-500.0,0.00016986,2]
[334001782,1722672657309,-500.0,0.00016986,2]
[334001783,1722672657319,-500.0,0.00016986,2]
[334001784,1722672657328,-500.0,0.00016986,2]
[334001785,1722672657339,-696.17,0.00016986,2]
[334001786,1722672657349,-500.0,0.00016986,2]
[334001787,1722672657358,-500.0,0.00016986,2]
[334001788,1722672657369,-500.0,0.00016986,2]
[334001789,1722672657379,-500.0,0.00016986,2]
[334001790,1722672657389,-512.5798116,0.00016986,2]
[334001791,1722672657399,-500.0,0.00016986,2]
[334001792,1722672657409,-500.0,0.00016986,2]
[334001793,1722672657419,-500.0,0.00016986,2]
[334001794,1722672657429,-500.0,0.00016986,2]
[334001795,1722672657439,-500.0,0.00016986,2]
[334001796,1722672657448,-500.0,0.00016986,2]
[334001797,1722672657459,-500.0,0.00016986,2]
[334001798,1722672657468,-500.0,0.00016986,2]
[334001799,1722672657477,-500.0,0.00016986,2]
[334001800,1722672657487,-500.0,0.00016986,2]
[334001801,1722672657497,-500.0,0.00016986,2]
[334001802,1722672657511,-508.13,0.00016986,2]
[334001803,1722672657521,-500.0,0.00016986,2]
[334001804,1722672657530,-924.44,0.00016986,2]
[334001805,1722672657540,-748.67,0.00016986,2]
[334001806,1722672657550,-500.0,0.00016986,2]
[334001807,1722672657559,-610.71,0.00016986,2]
[334001808,1722672657570,-500.0,0.00016986,2]
[334001809,1722672657581,-500.0,0.00016986,2]
[334001810,1722672657591,-616.11,0.00016986,2]
[334001811,1722672657601,-500.0,0.00016986,2]
[334001812,1722672657611,-500.0,0.00016986,2]
[334001813,1722672657621,-281.86813268,0.00016986,2]
[334001814,1722672657632,-500.0,0.00016986,2]
[334001815,1722672657643,-500.0,0.00016986,2]
[334001816,1722672657654,-500.0,0.00016986,2]
[334001817,1722672657665,-500.0,0.00016986,2]
[334001818,1722672657676,-500.0,0.00016986,2]
[334001819,1722672657687,-500.0,0.00016986,2]
[334001820,1722672657700,-526.29,0.00016986,2]
[334001821,1722672657710,-804.34,0.00016986,2]
[334001822,1722672657721,-583.58500319,0.00016986,2]
[334001823,1722672657731,-500.0,0.00016986,2]
[334001824,1722672657742,-500.0,0.00016986,2]
[334001825,1722672657754,-500.0,0.00016986,2]
[334001826,1722672657764,-500.0,0.00016986,2]
[334001827,1722672657775,-500.0,0.00016986,2]
[334001828,1722672657786,-500.0,0.00016986,2]
[334001829,1722672657796,-590.71,0.00016986,2]
[334001830,1722672657805,-500.0,0.00016986,2]
[334001831,1722672657815,-500.0,0.00016986,2]
[334001832,1722672657826,-572.46,0.00016986,2]
[334001833,1722672657836,-500.0,0.00016986,2]
[334001834,1722672657846,-500.0,0.00016986,2]
[334001835,1722672657856,-500.0,0.00016986,2]
[334001836,1722672657867,-500.0,0.00016986,2]
[334001837,1722672657878,-500.0,0.00016986,2]
[334001838,1722672657888,-507.70712356,0.00016986,2]
[334001839,1722672657899,-500.0,0.00016986,2]
[334001840,1722672657909,-1146.83,0.00016986,2]
[334001841,1722672657919,-500.0,0.00016986,2]
[334001842,1722672657929,-951.73,0.00016986,2]
[334001843,1722672657939,-500.0,0.00016986,2]
[334001844,1722672657951,-888.24,0.00016986,2]
[334001845,1722672657961,-500.0,0.00016986,2]
[334001846,1722672657971,-1734.7,0.00016986,2]
[334001847,1722672657980,-500.0,0.00016986,2]
[334001848,1722672657990,-774.79,0.00016986,2]
[334001849,1722672657999,-500.0,0.00016986,2]
[334001850,1722672658010,-500.0,0.00016986,2]
[334001851,1722672658019,-536.75992577,0.00016986,2]
[334001852,1722672658029,-500.0,0.00016986,2]
[334001853,1722672658039,-500.0,0.00016986,2]
[334001854,1722672658049,-500.0,0.00016986,2]
[334001855,1722672658058,-500.0,0.00016986,2]
[334001856,1722672658068,-500.0,0.00016986,2]
[334001857,1722672658078,-500.0,0.00016986,2]
[334001858,1722672658087,-682.31,0.00016986,2]
[334001859,1722672658097,-519.32050492,0.00016986,2]
[334001860,1722672658106,-500.0,0.00016986,2]
[334001861,1722672658116,-500.0,0.00016986,2]
[334001862,1722672658125,-500.0,0.00016986,2]
[334001863,1722672658135,-500.0,0.00016986,2]
[334001864,1722672658145,-500.0,0.00016986,2]
[334001865,1722672658155,-500.0,0.00016986,2]
[334001866,1722672658164,-505.23533465,0.00016986,2]
[334001867,1722672658175,-500.0,0.00016986,2]
[334001868,1722672658184,-648.41,0.00016986,2]
[334001869,1722672658195,-500.0,0.00016986,2]
[334001870,1722672658206,-795.59,0.00016986,2]
[334001871,1722672658216,-500.0,0.00016986,2]
[334001872,1722672658226,-500.0,0.00016986,2]
[334001873,1722672658236,-500.0,0.00016986,2]
[334001874,1722672658246,-723.82,0.00016986,2]
[334001875,1722672658256,-500.0,0.00016986,2]
[334001876,1722672658266,-500.0,0.00016986,2]
[334001877,1722672658276,-500.0,0.00016986,2]
[334001878,1722672658285,-500.0,0.00016986,2]
[334001879,1722672658295,-500.0,0.00016986,2]
[334001880,1722672658306,-500.0,0.00016986,2]
[334001881,1722672658315,-512.60909891,0.00016986,2]
[334001882,1722672658325,-1168.92,0.00016986,2]
[334001883,1722672658334,-819.92,0.00016986,2]
[334001884,1722672658344,-500.0,0.00016986,2]
[334001885,1722672658353,-500.0,0.00016986,2]
[334001886,1722672658363,-500.0,0.00016986,2]
[334001887,1722672658372,-508.94,0.00016986,2]
[334001888,1722672658382,-582.03,0.00016986,2]
[334001889,1722672658391,-500.0,0.00016986,2]
[334001890,1722672658401,-554.64761974,0.00016986,2]
[334001891,1722672658410,-618.32,0.00016986,2]
[334001892,1722672658419,-500.0,0.00016986,2]
[334001893,1722672658429,-1159.6,0.00016986,2]
[334001894,1722672658440,-500.0,0.00016986,2]
[334001895,1722672658450,-500.0,0.00016986,2]
[334001896,1722672658459,-500.0,0.00016986,2]
[334001897,1722672658469,-500.0,0.00016986,2]
[334001898,1722672658479,-500.0,0.00016986,2]
[334001899,1722672658488,-500.0,0.00016986,2]
[334001900,1722672658498,-577.66,0.00016986,2]
[334001901,1722672658513,-500.0,0.00016986,2]
[334001902,1722672658522,-500.0,0.00016986,2]
[334001903,1722672658532,-549.41,0.00016986,2]
[334001904,1722672658542,-500.0,0.00016986,2]
[334001905,1722672658552,-530.35,0.00016986,2]
[334001906,1722672658561,-500.0,0.00016986,2]
[334001907,1722672658571,-500.0,0.00016986,2]
[334001908,1722672658582,-925.21,0.00016986,2]
[334001909,1722672658591,-525.77,0.00016986,2]
[334001910,1722672658602,-500.0,0.00016986,2]
[334001911,1722672658611,-500.0,0.00016986,2]
[334001912,1722672658620,-500.0,0.00016986,2]
[334001913,1722672658630,-500.0,0.00016986,2]
[334001914,1722672658639,-500.0,0.00016986,2]
[334001915,1722672658650,-500.0,0.00016986,2]
[334001916,1722672658659,-500.0,0.00016986,2]
[334001917,1722672658669,-904.56,0.00016986,2]
[334001918,1722672658679,-500.0,0.00016986,2]
[334001919,1722672658688,-263.75642331,0.00016986,2]
[334001920,1722672658699,-501.53,0.00016986,2]
[334001921,1722672658709,-500.0,0.00016986,2]
[334001922,1722672658719,-500.0,0.00016986,2]
[334001923,1722672658728,-500.0,0.00016986,2]
[334001924,1722672658737,-622.55,0.00016986,2]
[334001925,1722672658748,-519.79353515,0.00016986,2]
[334001926,1722672658758,-540.33,0.00016986,2]
[334001927,1722672658769,-433.46073138,0.00016986,2]
[334001928,1722672658779,-500.0,0.00016986,2]
[334001929,1722672659101,-602.82,0.00016986,2]
[334001930,1722672659110,-644.95,0.00016986,2]
[334001931,1722672659120,-503.96,0.00016986,2]
[334001932,1722672659128,-500.0,0.00016986,2]
[334001933,1722672659138,-500.0,0.00016986,2]
[334001934,1722672659147,-825.13,0.00016986,2]
[334001935,1722672659157,-507.24894667,0.00016986,2]
[334001936,1722672659166,-500.0,0.00016986,2]
[334001937,1722672659176,-500.0,0.00016986,2]
[334001938,1722672659185,-569.65519752,0.00016986,2]
[334001939,1722672659195,-500.0,0.00016986,2]